[Event "2nd Cambridge Open 2024"]
[Site "Cambridge"]
[Date "2024.02.24"]
[Round "8.13"]
[White "Golubovic, Boris"]
[Black "Hutchinson, Paul A"]
[Result "1-0"]
[ECO "E67"]
[WhiteElo "2342"]
[BlackElo "2013"]
[Annotator "TA"]
[PlyCount "83"]
[EventDate "2024.02.18"]
[EventType "swiss"]
[EventCountry "ENG"]
[SourceTitle "playchess.com"]
[Source "ChessBase"]
[SourceQuality "1"]
[TimeControl "5400+30"]

{[%evp 17,83,38,44,18,41,-27,51,60,88,86,110,110,130,136,135,137,140,129,131,139,288,309,309,283,328,315,393,362,457,230,210,210,236,229,210,202,402,369,373,315,446,446,454,439,479,479,730,603,603,603,598,594,843,810,773,528,29965,29961,1391,1031,828,645,1391,596,29985,29986,29994,29995]} 1. d4 {[%emt 0:00:06]} Nf6 {[%emt 0:00:22]} 2. Nf3 {[%emt 0:00:56]} g6 {[%emt 0:00:08]} 3. c4 {[%emt 0:01:38]} Bg7 {[%emt 0:00:10]} 4. Nc3 {[%emt 0:00:54]} O-O {[%emt 0:00:09]} 5. g3 {[%emt 0:00:07]} c6 {[%emt 0:02:02]} 6. Bg2 {[%emt 0:00:33]} a6 {[%emt 0:01:21]} 7. O-O {[%emt 0:13:51]} d6 {[%emt 0:06:38]} 8. h3 {[%emt 0:05:24]} Nbd7 {[%emt 0:03:37]} 9. e4 {[%emt 0:00:24]} Qc7 {[%emt 0:01:11]} 10. Be3 {[%emt 0:08:12]} b5 {[%emt 0:01:17] [#]} 11. e5 {[%emt 0:02:27]} Ne8 {[%emt 0:02:56]} (11... dxe5 $11 12. dxe5 Nxe5 13. Nxe5 Qxe5) 12. exd6 $14 {[%emt 0:02:46] White is slightly better.} Nxd6 {[%emt 0:01:42][%cal Be8d6,Bd6c4,Bc4a5,Ba5b7][%mdl 32]} 13. c5 {[%emt 0:03:56]} Nc4 {[%emt 0:09:22][%cal Oc4e3] [#]} 14. Bc1 {[%emt 0:01:52]} e5 {[%emt 0:07:22]} 15. b3 {[%emt 0:00:18]} Na5 {[%emt 0:05:27]} 16. Be3 {[%emt 0:09:40]} Nb7 {[%emt 0:05:51]} 17. b4 {[%emt 0:04:12]} a5 {[%emt 0:00:30]} 18. a3 {[%emt 0:00:06][%cal Ba2a3,Ba3b4,Bb4c5][%mdl 32] White is more active.} Re8 {[%emt 0:34:00] This move loses the game for Black.} (18... Nd8 $16 19. d5 Bb7) 19. d5 $18 {[%emt 0:10:04] Hoping for dxc6.} axb4 {[%emt 0:01:36]} 20. axb4 {[%emt 0:03:17]} Rxa1 {[%emt 0:00:19]} 21. Qxa1 {[%emt 0:00:06]} cxd5 {[%emt 0:01:00]} 22. Nxd5 {[%emt 0:02:11]} (22. Nxb5 Qb8 $18) 22... Qd8 {[%emt 0:06:11]} 23. Qa7 {[%emt 0:20:29]} (23. Rd1 $142) 23... Ndxc5 {[%emt 0:00:39][%cal Oe5e4]} 24. bxc5 {[%emt 0:03:57]} Qxd5 {[%emt 0:00:07]} 25. Ng5 {[%emt 0:00:36]} e4 {[%emt 0:00:19] [#]} 26. Nxe4 $1 {[%emt 0:00:17]} Qe6 {[%emt 0:03:24] Against Nf6+} (26... Rxe4 $2 {perishes.} 27. Qa8 Qd8 28. Bxe4 Nxc5 29. Rc1 $18 (29. Bxc5 Bf6 $18)) (26... Qd3) 27. Ng5 {[%emt 0:01:51][%csl LRb7,LRe6]} Qe7 {[%emt 0:01:13]} 28. Rd1 {[%emt 0:00:58] c6 is the strong threat.} h6 {[%emt 0:00:16]} (28... Bf6 $142 29. Ne4 Nd8) 29. c6 {[%emt 0:00:27]} hxg5 {[%emt 0:05:10]} 30. cxb7 {[%emt 0:00:12]} Bxb7 {[%emt 0:00:11]} 31. Qxb7 {[%emt 0:00:19]} ({Don't take} 31. Bxb7 b4 32. Qa4 Qf8 $18) 31... Qa3 {[%emt 0:00:42]} (31... Qxb7 $142 32. Bxb7 b4) 32. Qxb5 {[%emt 0:00:28]} Rxe3 {[%emt 0:00:33] Black is weak on the light squares} 33. fxe3 {[%emt 0:00:16]} Qxe3+ {[%emt 0:00:05]} 34. Kh1 {[%emt 0:00:32]} Qxg3 {[%emt 0:00:30]} 35. Qe8+ {[%emt 0:00:12]} Kh7 {[%emt 0:00:22]} 36. Qxf7 {[%emt 0:00:10]} g4 {[%emt 0:00:07]} 37. Rd7 {[%emt 0:01:47][%csl Gd7][%cal Rf7g7]} Qe1+ {[%emt 0:00:10]} 38. Qf1 {[%emt 0:00:12]} Qe6 {[%emt 0:00:08]} 39. Rd3 {[%emt 0:00:25] Black must now prevent hxg4.} Be5 {[%emt 0:00:57]} 40. Bd5 {[%emt 0:00:34]} Qa6 {[%emt 0:00:36]} 41. hxg4 {[%emt 0:00:15]} Kh6 {[%emt 0:01:19]} 42. Rh3+ {[%emt 0:00:10] Weighted Error Value: White=0.47/Black=0.72.  Mistake:       	White=2     	Black=5      Inaccurate:     	---       	Black=1      OK:         	White=9     	Black=8      Best:        	White=2     	Black=3      Strong:       	White=1     	---} 1-0

[Event "2nd Cambridge Open 2024"]
[Site "Cambridge"]
[Date "2024.02.24"]
[Round "8.14"]
[White "Pozzari, Simone"]
[Black "Ward, Ieuan C"]
[Result "0-1"]
[ECO "E08"]
[WhiteElo "2282"]
[BlackElo "2028"]
[Annotator "TA"]
[PlyCount "60"]
[EventDate "2024.02.18"]
[EventType "swiss"]
[EventCountry "ENG"]
[SourceTitle "playchess.com"]
[Source "ChessBase"]
[SourceQuality "1"]
[TimeControl "5400+30"]

{[%evp 15,60,40,70,30,30,17,45,33,31,-36,-25,-52,-31,-45,-31,-43,-34,-69,0,-27,-26,-50,-27,-43,22,12,26,47,16,23,28,29,43,-199,-193,-179,-188,-207,-202,-526,-522,-522,-511,-580,-576,-664,-616]} 1. d4 {[%emt 0:00:02]} Nf6 {[%emt 0:00:08]} 2. c4 {[%emt 0:00:06]} e6 {[%emt 0:00:04]} 3. g3 {[%emt 0:00:06]} d5 {[%emt 0:00:05]} 4. Bg2 {[%emt 0:00:07]} Be7 {[%emt 0:00:31]} 5. Nf3 {[%emt 0:00:06]} O-O {[%emt 0:00:09]} 6. O-O {[%emt 0:00:04]} Nbd7 {[%emt 0:00:47]} 7. Qc2 {[%emt 0:00:47]} b6 {[%emt 0:01:26]} 8. cxd5 {[%emt 0:01:42]} exd5 {[%emt 0:00:32]} 9. Bf4 {[%emt 0:01:01]} c5 {[%emt 0:00:31]} 10. dxc5 {[%emt 0:00:53]} bxc5 {[%emt 0:00:58]} 11. Nc3 {[%emt 0:03:26] White is slightly better.} Bb7 {[%emt 0:05:16]} 12. Rfd1 {[%emt 0:03:20]} (12. e3 $14) 12... d4 $15 {[%emt 0:07:22]} 13. Nb5 {[%emt 0:02:31]} Qb6 {[%emt 0:02:03] Repels Nd6} 14. Na3 {[%emt 0:09:11]} Be4 {[%emt 0:01:23]} 15. Qd2 {[%emt 0:04:39]} Qb7 {[%emt 0:04:37]} 16. Nc4 {[%emt 0:01:08][%cal Ob2b4]} Qd5 {[%emt 0:04:09]} ({Black should play} 16... Nb6 $15 17. Na5 Qd5) 17. Rac1 {[%emt 0:02:21]} Nb6 {[%emt 0:01:37]} 18. b3 {[%emt 0:04:02]} Nxc4 {[%emt 0:14:59]} 19. Rxc4 {[%emt 0:00:15]} Qb7 {[%emt 0:02:47]} (19... h6 $15) 20. Bg5 $11 {[%emt 0:05:03]} Nd5 {[%emt 0:08:56][%cal Bf6d5,Bd5b6,Bb6c4][%mdl 32] White must now prevent ...f6.} 21. Bxe7 {[%emt 0:01:41]} Qxe7 {[%emt 0:00:11] [#]} 22. Nxd4 $1 {[%emt 0:02:08]} Nb6 $1 {[%emt 0:10:33][%cal Ob6c4]} (22... cxd4 23. Bxe4 Qxe4 24. Rxd4 $18 (24. Qxd4 $2 Qe7 $19)) 23. Bxe4 $1 {[%emt 0:12:57]} Nxc4 {[%emt 0:01:02]} 24. Nf5 $2 {[%emt 0:10:04] This move loses the game for White.} (24. Qc2 $14 {keeps the upper hand.} Rad8 25. Bxh7+ Kh8 26. bxc4 Rxd4 27. Rxd4 cxd4 28. Be4) 24... Qxe4 $19 {[%emt 0:05:46]} 25. Qg5 {[%emt 0:00:06][%csl Gf5][%cal Rg5g7]} g6 {[%emt 0:04:15]} (25... Qxe2 26. Qxg7#) 26. Nh6+ {[%emt 0:00:24]} Kg7 {[%emt 0:00:17]} 27. Ng4 {[%emt 0:01:50] Dodges Ne5} (27. bxc4 {nothing else works.} Rae8 (27... Qxe2 28. Nf5+ Kg8 29. Nh6+ Kg7 30. Nf5+ Kg8 31. Nh6+ Kg7 $11) 28. Rd5) 27... Qf5 {[%emt 0:02:07] Black is clearly winning.} ({Not} 27... Qxe2 28. Qf6+ Kg8 29. Nh6#) 28. Qh6+ {[%emt 0:02:37] [#]} Kh8 $1 {[%emt 0:02:52]} 29. h3 {[%emt 0:00:18][%cal Od1d5]} Ne5 {[%emt 0:00:35]} 30. e4 {[%emt 0:01:29]} Qe6 {[%emt 0:03:45] Weighted Error Value: White=0.62/Black=0.12 (very precise) .  Loses game:     	White=1     	---        Mistake:       	White=2     	Black=2      Inaccurate:     	White=2     	Black=1      OK:         	White=8     	Black=6      Best:        	---       	Black=6      Strong:       	White=1     	Black=2} (30... Qxe4 $2 {too greedy.} 31. Nf6 Nf3+ 32. Kh1 Ng5+ 33. Nxe4 Nxe4 34. Qf4 $18) 0-1

[Event "2nd Cambridge Open 2024"]
[Site "Cambridge"]
[Date "2024.02.24"]
[Round "8.15"]
[White "Dishman, Stephen"]
[Black "Rushbrooke, Remy"]
[Result "1/2-1/2"]
[ECO "A80"]
[WhiteElo "2273"]
[BlackElo "2049"]
[Annotator "TA"]
[PlyCount "100"]
[EventDate "2024.02.18"]
[EventType "swiss"]
[EventCountry "ENG"]
[SourceTitle "playchess.com"]
[Source "ChessBase"]
[SourceQuality "1"]
[TimeControl "5400+30"]

{[%evp 9,100,42,45,38,41,40,42,33,52,46,45,26,25,31,106,113,112,125,120,127,128,137,137,125,100,122,120,130,131,131,124,126,122,126,156,59,60,70,66,67,127,133,358,366,376,356,357,353,383,385,372,362,462,164,166,181,411,402,485,485,479,254,248,252,220,0,0,0,0,0,0,0,0,0,0,0,0,0,0,0,0,0,0,0,0,0,0,0,0,0,0,0,29985]} 1. d4 {[%emt 0:00:03]} f5 {[%emt 0:01:33]} 2. Bg5 {[%emt 0:00:10]} h6 {[%emt 0:00:07]} 3. Bh4 {[%emt 0:00:16]} g5 {[%emt 0:00:07]} 4. e3 {[%emt 0:00:19]} Nf6 {[%emt 0:00:05]} 5. Bg3 {[%emt 0:00:08]} Bg7 {[%emt 0:02:59][%cal Oc7c5]} 6. Nc3 {[%emt 0:00:50]} d6 {[%emt 0:01:35]} 7. h4 {[%emt 0:00:57]} g4 $1 {[%emt 0:01:01]} 8. h5 {[%emt 0:02:51] White is slightly better.} Nc6 {[%emt 0:01:56]} 9. Bc4 {[%emt 0:05:32]} a6 {[%emt 0:03:22]} 10. Nge2 {[%emt 0:01:54] Strongly threatening Nf4.} b5 {[%emt 0:03:03]} 11. Bb3 {[%emt 0:01:42]} e5 {[%emt 0:04:30] Inhibits Nf4.} (11... Na5 $14) 12. dxe5 $16 {[%emt 0:04:00]} dxe5 {[%emt 0:00:44]} 13. Qxd8+ {[%emt 0:04:25]} Kxd8 {[%emt 0:00:02]} 14. O-O-O+ {[%emt 0:04:45]} Ke8 {[%emt 0:00:03][%cal Bd8e8,Be8f7,Bf7f6][%mdl 32]} 15. Nd5 {[%emt 0:08:18]} Nxd5 {[%emt 0:00:31]} 16. Bxd5 {[%emt 0:08:30]} Bd7 {[%emt 0:07:05] [#]} 17. Bf7+ $1 {[%emt 0:05:36]} Kxf7 {[%emt 0:03:45]} 18. Rxd7+ {[%emt 0:00:07]} Ne7 {[%emt 0:00:05]} 19. Bh4 {[%emt 0:01:51] White has more active pieces.} Bf6 {[%emt 0:00:04]} 20. Bxf6 {[%emt 0:01:18]} (20. Rxc7 Bxh4 21. Rxh4 Rhc8 22. Rxc8 Rxc8 $14) 20... Kxf6 {[%emt 0:00:03]} 21. Rxc7 {[%emt 0:00:51]} Rac8 {[%emt 0:01:20]} 22. Rxc8 {[%emt 0:04:13]} ({Better is} 22. Ra7 $16) 22... Rxc8 {[%emt 0:00:05][%mdl 4096] Endgame. KRN-KRN} 23. Rd1 {[%emt 0:00:22]} Ke6 {[%emt 0:00:08] Repels Rd6+} 24. Ng3 {[%emt 0:07:50]} Nd5 {[%emt 0:05:03]} (24... a5 $14) 25. Nxf5 $1 {[%emt 0:01:21]} Nb4 $2 {[%emt 0:00:16]} (25... Kxf5 $16 26. Rxd5 Rf8) 26. e4 $1 $18 {[%emt 0:00:24]} (26. Nxh6 Rxc2+ 27. Kb1 Rxf2 $14) 26... Rxc2+ {[%emt 0:00:50]} 27. Kb1 {[%emt 0:00:07]} Re2 {[%emt 0:04:31]} 28. a3 {[%emt 0:07:09]} (28. Nxh6 Rxe4 29. a3 Nd5 $16) ({Don't take} 28. Rd6+ Kf7 29. Nxh6+ (29. Rxh6 $2 Re1#) 29... Kf8 30. Rd8+ (30. Nxg4 $2 Re1+) 30... Kg7 31. Nf5+ (31. Nxg4 $2 Re1+) 31... Kh7 32. Rd7+ Kh8 33. Rd8+ Kh7 $18) 28... Rxe4 {[%emt 0:00:25]} 29. Ng3 {[%emt 0:07:34]} ({Less strong is} 29. Nxh6 Nd5 $16) 29... Rf4 {[%emt 0:00:05]} 30. axb4 {[%emt 0:00:16]} Rxf2 {[%emt 0:00:03] KRN-KR} 31. Rg1 {[%emt 0:03:14]} (31. Rd6+ Kxd6 32. Ne4+ Ke6 33. Nxf2) 31... Kd5 {[%emt 0:00:42]} 32. Ka2 {[%emt 0:01:17] And now Rd1+ would win.} Kd4 $2 {[%emt 0:06:19]} (32... e4 {keeps fighting.} 33. Re1 Rxg2) 33. Re1 {[%emt 0:01:24]} Rxg2 {[%emt 0:01:38]} 34. Nf5+ {[%emt 0:00:22]} Kd3 {[%emt 0:00:23]} 35. Rxe5 {[%emt 0:00:31]} (35. Nxh6 $142 e4 36. Nf5) 35... Re2 {[%emt 0:00:59] [#]} 36. Rc5 {[%emt 0:01:56]} Re6 {[%emt 0:01:57] [#]} 37. Rc1 $2 {[%emt 0:04:32]} (37. Ng3 $1 $18) 37... Ke4 $11 {[%emt 0:05:44] The position is equal.} 38. Rf1 {[%emt 0:01:15] Ng3+ would now be deadly.} Rf6 $1 {[%emt 0:03:07]} 39. Ng3+ {[%emt 0:00:11]} Ke5 {[%emt 0:00:04]} 40. Re1+ {[%emt 0:02:25]} Kf4 {[%emt 0:02:14]} 41. Rf1+ {[%emt 0:02:40]} Ke5 {[%emt 0:00:04] aiming for ...Rxf1.} 42. Rg1 {[%emt 0:03:47]} Rf2 {[%emt 0:03:30]} 43. Kb3 {[%emt 0:02:53]} Kf4 {[%emt 0:02:26] Hoping for ...Rf3+.} 44. Ne4 {[%emt 0:01:25]} Kxe4 {[%emt 0:13:14]} 45. Rxg4+ {[%emt 0:00:01] KR-KR} Ke5 {[%emt 0:00:04]} 46. Kc3 {[%emt 0:00:37]} Rf3+ {[%emt 0:00:10]} 47. Kc2 {[%emt 0:00:07]} Rh3 {[%emt 0:00:03]} 48. Rg6 {[%emt 0:00:05][%csl LRa6,LRh6]} Rxh5 {[%emt 0:00:41]} 49. Rxa6 {[%emt 0:00:03]} Kd4 {[%emt 0:00:34]} 50. Rc6 {[%emt 0:00:36]} Kd5 $2 {[%emt 0:07:32][%mdl 40960] Weighted Error Value: White=0.24 (precise) /Black=0.20 (precise) .  Loses game:     	---       	Black=2      Missed win:     	White=1     	---        Mistake:       	White=3     	Black=3      OK:         	White=22    	Black=14     Best:        	White=4     	Black=9      Strong:       	White=2     	Black=2     . An unexpected result.} (50... Rh2+ $11 51. Kb3 Rh3+ 52. Ka2 Rh5) 1/2-1/2

[Event "2nd Cambridge Open 2024"]
[Site "Cambridge"]
[Date "2024.02.24"]
[Round "8.16"]
[White "Shafi, Declan"]
[Black "Kovalskyi, Roman"]
[Result "1-0"]
[ECO "E04"]
[WhiteElo "2219"]
[BlackElo "2009"]
[Annotator "RC"]
[PlyCount "117"]
[EventDate "2024.02.18"]
[EventType "swiss"]
[EventCountry "ENG"]
[SourceTitle "playchess.com"]
[Source "ChessBase"]
[SourceQuality "1"]
[TimeControl "5400+30"]

1. Nf3 {[%emt 0:00:04]} d5 {[%emt 0:10:24]} 2. g3 {[%emt 0:00:07]} c5 {[%emt 0:00:06]} 3. Bg2 {[%emt 0:00:05]} Nf6 {[%emt 0:00:05]} 4. O-O {[%emt 0:00:09]} Nc6 {[%emt 0:00:05]} 5. d4 {[%emt 0:00:07]} e6 {[%emt 0:02:34]} 6. c4 {[%emt 0:00:09]} dxc4 {[%emt 0:01:32]} 7. Ne5 {[%emt 0:03:37]} Nxe5 {[%emt 0:03:20]} 8. dxe5 {[%emt 0:00:05]} Nd5 {[%emt 0:00:10]} 9. Na3 {[%emt 0:00:53]} Be7 {[%emt 0:03:52]} 10. Nxc4 {[%emt 0:00:11]} O-O {[%emt 0:00:06]} 11. Nd6 {[%emt 0:06:55]} Bxd6 {[%emt 0:18:17]} 12. exd6 {[%emt 0:00:06]} Qb6 {[%emt 0:00:03]} 13. e4 {[%emt 0:03:34]} Nb4 {[%emt 0:00:40]} 14. d7 {[%emt 0:04:04]} Bxd7 {[%emt 0:03:40]} 15. Qxd7 {[%emt 0:01:57]} Nc2 {[%emt 0:00:08]} 16. Rb1 {[%emt 0:00:39]} Na3 {[%emt 0:00:07]} 17. bxa3 {[%emt 0:02:38]} Qxb1 {[%emt 0:00:26]} 18. Be3 {[%emt 0:00:47]} Qb6 {[%emt 0:08:33]} 19. e5 {[%emt 0:01:33]} Rab8 {[%emt 0:10:21]} 20. Qd6 {[%emt 0:01:34]} Qb2 {[%emt 0:02:46]} 21. Bxc5 {[%emt 0:03:49]} b6 {[%emt 0:00:36]} 22. Bb4 {[%emt 0:00:45]} a5 {[%emt 0:02:37]} 23. Qd2 {[%emt 0:00:56]} Qxd2 {[%emt 0:00:04]} 24. Bxd2 {[%emt 0:00:06]} Rfd8 {[%emt 0:00:03]} 25. Be3 {[%emt 0:00:35]} Rd3 {[%emt 0:00:10]} 26. a4 {[%emt 0:01:05]} Ra3 {[%emt 0:00:06]} 27. Bc6 {[%emt 0:00:48]} Rxa2 {[%emt 0:00:05]} 28. Rd1 {[%emt 1:07:12]} Kf8 {[%emt 0:08:34]} 29. Bxb6 {[%emt 0:00:00]} Rc2 {[%emt 0:01:13]} 30. Bb5 {[%emt 0:00:00]} Ra8 {[%emt 0:00:29]} 31. Bxa5 {[%emt 0:00:00]} g6 {[%emt 0:00:06]} 32. Rd8+ {[%emt 0:00:00]} Rxd8 {[%emt 0:00:06]} 33. Bxd8 {[%emt 0:00:00]} Rd2 {[%emt 0:00:06]} 34. Bb6 {[%emt 0:00:00]} Rd5 {[%emt 0:00:05]} 35. Bc7 {[%emt 0:00:00]} Ke7 {[%emt 0:00:39]} 36. Bd6+ {[%emt 0:00:00]} Kd8 {[%emt 0:00:05]} 37. Kg2 {[%emt 0:00:00]} f6 {[%emt 0:00:48]} 38. Bc4 {[%emt 0:00:00]} Rd4 {[%emt 0:00:03]} 39. Bb5 {[%emt 0:00:00]} fxe5 {[%emt 0:00:09]} 40. Bxe5 {[%emt 0:00:00]} Rd5 {[%emt 0:00:04]} 41. Bf6+ {[%emt 0:00:00]} Kc7 {[%emt 0:00:05]} 42. h4 {[%emt 0:00:00]} Kd6 {[%emt 0:00:41]} 43. f4 {[%emt 0:00:00]} Kc5 {[%emt 0:00:27]} 44. Be5 {[%emt 0:00:00]} Kb4 {[%emt 0:00:27]} 45. Kf3 {[%emt 0:00:00]} Rd2 {[%emt 0:00:48]} 46. Kg4 {[%emt 0:00:00]} Rg2 {[%emt 0:00:08]} 47. Bd7 {[%emt 0:00:00]} Rd2 {[%emt 0:00:06]} 48. Bxe6 {[%emt 0:00:00]} Kxa4 {[%emt 0:00:03]} 49. Kg5 {[%emt 0:00:00]} Rg2 {[%emt 0:00:11]} 50. g4 {[%emt 0:00:00]} h5 {[%emt 0:00:51]} 51. Kxg6 {[%emt 0:00:00]} hxg4 {[%emt 0:00:04]} 52. f5 {[%emt 0:00:00]} g3 {[%emt 0:00:53]} 53. f6 {[%emt 0:00:00]} Re2 {[%emt 0:00:05]} 54. Bd7+ {[%emt 0:00:00]} Kb3 {[%emt 0:00:17]} 55. Bxg3 {[%emt 0:00:00]} Rg2 {[%emt 0:00:04]} 56. f7 {[%emt 0:00:00]} Rxg3+ {[%emt 0:00:07]} 57. Kf6 {[%emt 0:00:00]} Rf3+ {[%emt 0:00:10]} 58. Bf5 {[%emt 0:00:00]} Rf4 {[%emt 0:00:08]} 59. f8=Q {[%emt 0:00:00]} 1-0

[Event "2nd Cambridge Open 2024"]
[Site "Cambridge"]
[Date "2024.02.24"]
[Round "8.17"]
[White "Golubovic, Erik"]
[Black "McClement, Andrew"]
[Result "1/2-1/2"]
[ECO "E11"]
[WhiteElo "2025"]
[BlackElo "2223"]
[Annotator "RC"]
[PlyCount "41"]
[EventDate "2024.02.18"]
[EventType "swiss"]
[EventCountry "ENG"]
[SourceTitle "playchess.com"]
[Source "ChessBase"]
[SourceQuality "1"]
[TimeControl "5400+30"]

1. d4 {[%emt 0:00:02]} Nf6 {[%emt 0:00:23]} 2. c4 {[%emt 0:00:27]} e6 {[%emt 0:00:03]} 3. g3 {[%emt 0:00:07]} d5 {[%emt 0:00:07]} 4. Nf3 {[%emt 0:00:14]} Bb4+ {[%emt 0:00:04]} 5. Bd2 {[%emt 0:00:04]} Be7 {[%emt 0:00:04]} 6. Bg2 {[%emt 0:00:05]} O-O {[%emt 0:00:08]} 7. O-O {[%emt 0:00:04]} c6 {[%emt 0:00:04]} 8. Qb3 {[%emt 0:00:12]} b6 {[%emt 0:01:26]} 9. cxd5 {[%emt 0:00:53]} cxd5 {[%emt 0:06:26]} 10. Bb4 {[%emt 0:01:22]} Nc6 {[%emt 0:07:58]} 11. Bxe7 {[%emt 0:00:34]} Qxe7 {[%emt 0:00:02]} 12. Rc1 {[%emt 0:01:09]} Bb7 {[%emt 0:01:19]} 13. Nc3 {[%emt 0:00:38]} Rfc8 {[%emt 0:00:47]} 14. e3 {[%emt 0:02:28]} Na5 {[%emt 0:05:25]} 15. Qd1 {[%emt 0:01:52]} Qb4 {[%emt 0:02:35]} 16. Rab1 {[%emt 0:07:59]} Nc4 {[%emt 0:04:14]} 17. Nd2 {[%emt 0:02:33]} Ba6 {[%emt 0:17:56]} 18. Nxc4 {[%emt 0:05:24]} Bxc4 {[%emt 0:00:24]} 19. Rc2 {[%emt 0:00:49]} h6 {[%emt 0:12:57]} 20. Rbc1 {[%emt 0:03:14]} a5 {[%emt 0:07:06]} 21. Bf1 {[%emt 0:07:11]} 1/2-1/2

[Event "2nd Cambridge Open 2024"]
[Site "Cambridge"]
[Date "2024.02.24"]
[Round "8.18"]
[White "Saine, Zachary"]
[Black "Martyn, Rafe"]
[Result "1-0"]
[ECO "B33"]
[WhiteElo "1978"]
[BlackElo "2206"]
[Annotator "RC"]
[PlyCount "71"]
[EventDate "2024.02.18"]
[EventType "swiss"]
[EventCountry "ENG"]
[SourceTitle "playchess.com"]
[Source "ChessBase"]
[SourceQuality "1"]
[TimeControl "5400+30"]

1. e4 {[%emt 0:03:29]} c5 {[%emt 0:00:05]} 2. Nf3 {[%emt 0:00:20]} Nc6 {[%emt 0:00:03]} 3. d4 {[%emt 0:00:04]} cxd4 {[%emt 0:00:04]} 4. Nxd4 {[%emt 0:00:03]} Nf6 {[%emt 0:00:05]} 5. Nc3 {[%emt 0:00:03]} e5 {[%emt 0:00:03]} 6. Ndb5 {[%emt 0:00:06]} d6 {[%emt 0:00:05]} 7. Nd5 {[%emt 0:00:03]} Nxd5 {[%emt 0:00:04]} 8. exd5 {[%emt 0:00:03]} Nb8 {[%emt 0:00:05]} 9. a4 {[%emt 0:00:09]} a6 {[%emt 0:02:48]} 10. Na3 {[%emt 0:01:12]} Be7 {[%emt 0:00:17]} 11. Be2 {[%emt 0:00:20]} O-O {[%emt 0:00:06]} 12. Bd2 {[%emt 0:00:08]} a5 {[%emt 0:03:28]} 13. Bb5 {[%emt 0:02:20]} f5 {[%emt 0:08:02]} 14. Qe2 {[%emt 0:08:00]} Na6 {[%emt 0:08:31]} 15. Nc4 {[%emt 0:02:10]} Nc5 {[%emt 0:04:26]} 16. b4 {[%emt 0:03:09]} axb4 {[%emt 0:00:29]} 17. Bxb4 {[%emt 0:00:04]} Qc7 {[%emt 0:03:27]} 18. f4 {[%emt 0:06:02]} exf4 {[%emt 0:09:07]} 19. Bxc5 {[%emt 0:06:27]} f3 {[%emt 0:02:24]} 20. Bb6 {[%emt 0:07:36]} fxg2 {[%emt 0:00:25]} 21. Qxg2 {[%emt 0:03:20]} Bh4+ {[%emt 0:00:04]} 22. Kd1 {[%emt 0:01:17]} Qe7 {[%emt 0:01:35]} 23. Qe2 {[%emt 0:01:56]} Qf6 {[%emt 0:01:42]} 24. Ra3 {[%emt 0:02:57]} f4 {[%emt 0:00:10]} 25. Bf2 {[%emt 0:20:11]} f3 {[%emt 0:06:09]} 26. Qe3 {[%emt 0:01:11]} Bg5 {[%emt 0:09:48]} 27. Qc3 {[%emt 0:15:41]} Qf4 {[%emt 0:03:43]} 28. Ne3 {[%emt 0:02:31]} Bf5 {[%emt 0:03:24]} 29. Qc4 {[%emt 0:02:09]} Be4 {[%emt 0:02:59]} 30. Bg3 {[%emt 0:07:29]} Bxc2+ {[%emt 0:00:35]} 31. Qxc2 {[%emt 0:00:35]} Qd4+ {[%emt 0:00:12]} 32. Rd3 {[%emt 0:00:22]} Qa1+ {[%emt 0:00:26]} 33. Qc1 {[%emt 0:00:10]} Qa2 {[%emt 0:00:34]} 34. Ra3 {[%emt 0:00:16]} Qg2 {[%emt 0:02:26]} 35. Nxg2 {[%emt 0:01:39]} fxg2 {[%emt 0:00:05]} 36. Rg1 {[%emt 0:00:18]} 1-0

[Event "2nd Cambridge Open 2024"]
[Site "Cambridge"]
[Date "2024.02.24"]
[Round "8.19"]
[White "Karamsetty, Jeevan"]
[Black "McLean, Robert"]
[Result "1/2-1/2"]
[ECO "B50"]
[WhiteElo "2211"]
[BlackElo "1823"]
[Annotator "RC"]
[PlyCount "73"]
[EventDate "2024.02.18"]
[EventType "swiss"]
[EventCountry "ENG"]
[SourceTitle "playchess.com"]
[Source "ChessBase"]
[SourceQuality "1"]
[TimeControl "5400+30"]

1. e4 {[%emt 0:01:50]} e6 {[%emt 0:00:06]} 2. d3 {[%emt 0:00:06]} d5 {[%emt 0:00:04]} 3. Nd2 {[%emt 0:00:06]} Nf6 {[%emt 0:00:04]} 4. Ngf3 {[%emt 0:00:08]} Be7 {[%emt 0:00:25]} 5. c3 {[%emt 0:00:49]} O-O {[%emt 0:00:35]} 6. e5 {[%emt 0:02:04]} Nfd7 {[%emt 0:00:06]} 7. d4 {[%emt 1:28:57]} c5 {[%emt 0:00:49]} 8. Bd3 {[%emt 0:00:00]} Nc6 {[%emt 0:00:26]} 9. O-O {[%emt 0:00:00]} cxd4 {[%emt 0:02:40]} 10. cxd4 {[%emt 0:00:00]} f6 {[%emt 0:03:09]} 11. exf6 {[%emt 0:00:00]} Bxf6 {[%emt 0:00:40]} 12. Nb3 {[%emt 0:00:00]} e5 {[%emt 0:02:42]} 13. dxe5 {[%emt 0:00:00]} Ndxe5 {[%emt 0:00:09]} 14. Be2 {[%emt 0:00:00]} Nxf3+ {[%emt 0:12:12]} 15. Bxf3 {[%emt 0:00:00]} d4 {[%emt 0:01:43]} 16. Bf4 {[%emt 0:00:00]} Bf5 {[%emt 0:06:39]} 17. Rc1 {[%emt 0:00:00]} Qb6 {[%emt 0:04:25]} 18. Bd6 {[%emt 0:05:30]} Rfd8 {[%emt 0:03:00]} 19. Bc5 {[%emt 0:00:00]} Qa6 {[%emt 0:01:26]} 20. Bxc6 {[%emt 0:00:00]} bxc6 {[%emt 0:01:05]} 21. Bxd4 {[%emt 0:00:00]} Be6 {[%emt 0:08:13]} 22. Qe1 {[%emt 0:00:00]} Bc4 {[%emt 0:06:16]} 23. Nc5 {[%emt 0:00:00]} Qxa2 {[%emt 0:00:50]} 24. Ra1 {[%emt 0:00:00]} Qxa1 {[%emt 0:00:48]} 25. Qxa1 {[%emt 0:00:00]} Bxd4 {[%emt 0:00:06]} 26. Rc1 {[%emt 0:00:00]} Bxc5 {[%emt 0:12:38]} 27. Rxc4 {[%emt 0:00:00]} Bb6 {[%emt 0:00:38]} 28. g3 {[%emt 0:00:00]} Rf8 {[%emt 0:04:49]} 29. Rxc6 {[%emt 0:00:00]} Bxf2+ {[%emt 0:00:54]} 30. Kg2 {[%emt 0:00:00]} Bb6 {[%emt 0:01:30]} 31. Rc2 {[%emt 0:00:00]} Rf6 {[%emt 0:02:34]} 32. b4 {[%emt 0:00:00]} Raf8 {[%emt 0:00:23]} 33. Qa2+ {[%emt 0:00:00]} Kh8 {[%emt 0:00:15]} 34. b5 {[%emt 0:00:00]} Rf2+ {[%emt 0:02:13]} 35. Kh3 {[%emt 0:00:00]} Rxc2 {[%emt 0:01:08]} 36. Qxc2 {[%emt 0:00:02]} g6 {[%emt 0:00:44]} 37. Qc3+ {[%emt 0:01:22]} 1/2-1/2